[Event "106th British-ch Major 2019"]
[Site "Torquay"]
[Date "2019.08.02"]
[Round "7.12"]
[White "Cocks, Elliot"]
[Black "Shaw, Peter"]
[Result "1/2-1/2"]
[ECO "A96"]
[WhiteElo "1907"]
[BlackElo "2068"]
[Annotator "NA"]
[PlyCount "53"]
[EventDate "2019.07.27"]
[EventType "swiss"]
[EventCountry "GBR"]
[SourceTitle "playchess.com"]
[Source "ChessBase"]
[SourceQuality "1"]
[TimeControl "40/5400+30:1800+30"]

1. Nf3 {[%emt 0:00:00]} f5 {[%emt 0:00:00]} 2. c4 {[%emt 0:01:20]} Nf6 {[%emt 0:00:00]} 3. g3 {[%emt 0:00:11]} e6 {[%emt 0:00:27]} 4. Bg2 {[%emt 0:00:08]} Be7 {[%emt 0:00:14]} 5. O-O {[%emt 0:00:44]} O-O {[%emt 0:00:20]} 6. Nc3 {[%emt 0:00:30]} d6 {[%emt 0:00:54]} 7. d4 {[%emt 0:01:34]} Ne4 {[%emt 0:00:26]} 8. Nxe4 {[%emt 0:01:46]} fxe4 {[%emt 0:00:06]} 9. Nd2 {[%emt 0:02:00]} d5 {[%emt 0:00:06]} 10. f3 {[%emt 0:01:46]} Nc6 {[%emt 0:00:10]} 11. fxe4 {[%emt 0:02:02]} Rxf1+ {[%emt 0:00:08]} 12. Kxf1 {[%emt 0:00:26]} dxc4 {[%emt 0:00:28]} 13. Nf3 {[%emt 0:00:15]} b5 {[%emt 0:00:23]} 14. Be3 {[%emt 0:04:00]} Qe8 {[%emt 0:00:18]} 15. b3 {[%emt 0:12:58]} c3 {[%emt 0:05:55]} 16. a3 {[%emt 0:04:51]} a5 {[%emt 0:10:52]} 17. Qc2 {[%emt 0:06:22]} b4 {[%emt 0:05:22]} 18. axb4 {[%emt 0:02:38]} Bxb4 {[%emt 0:00:13]} 19. Kg1 {[%emt 0:01:40]} Bb7 {[%emt 0:08:43]} 20. e5 {[%emt 0:07:53]} h6 {[%emt 0:20:01]} 21. Nh4 {[%emt 0:05:30]} Rb8 {[%emt 0:07:01]} 22. Bf2 {[%emt 0:18:09]} Ne7 {[%emt 0:02:53]} 23. Nf3 {[%emt 0:05:13]} Qg6 {[%emt 0:02:07]} 24. Qxg6 {[%emt 0:05:38]} Nxg6 {[%emt 0:00:03]} 25. Ne1 {[%emt 0:00:21]} Bxg2 {[%emt 0:01:51]} 26. Kxg2 {[%emt 0:00:08]} Ne7 {[%emt 0:09:57]} 27. Nd3 {[%emt 0:02:07]} 1/2-1/2

[Event "106th British-ch Major 2019"]
[Site "Torquay"]
[Date "2019.08.02"]
[Round "7.13"]
[White "Rogacewicz, Mikolaj"]
[Black "Menadue, Jeremy Fs"]
[Result "1-0"]
[ECO "A64"]
[WhiteElo "1925"]
[BlackElo "2016"]
[Annotator "NA"]
[PlyCount "89"]
[EventDate "2019.07.27"]
[EventType "swiss"]
[EventCountry "GBR"]
[SourceTitle "playchess.com"]
[Source "ChessBase"]
[SourceQuality "1"]
[TimeControl "40/5400+30:1800+30"]

1. d4 {[%emt 0:00:00]} Nf6 {[%emt 0:00:00]} 2. c4 {[%emt 0:00:00]} e6 {[%emt 0:00:36]} 3. g3 {[%emt 0:00:10]} c5 {[%emt 0:00:49]} 4. d5 {[%emt 0:00:36]} exd5 {[%emt 0:00:50]} 5. cxd5 {[%emt 0:00:16]} d6 {[%emt 0:00:15]} 6. Nc3 {[%emt 0:00:51]} g6 {[%emt 0:00:19]} 7. Bg2 {[%emt 0:01:14]} Bg7 {[%emt 0:00:15]} 8. Nf3 {[%emt 0:00:51]} O-O {[%emt 0:00:07]} 9. O-O {[%emt 0:00:45]} a6 {[%emt 0:00:55]} 10. a4 {[%emt 0:00:30]} Re8 {[%emt 0:02:52]} 11. h3 {[%emt 0:02:01]} Nbd7 {[%emt 0:00:44]} 12. Nd2 {[%emt 0:01:40]} Rb8 {[%emt 0:01:12]} 13. Nc4 {[%emt 0:01:21]} Nb6 {[%emt 0:01:25]} 14. Na3 {[%emt 0:03:57]} Bd7 {[%emt 0:01:35]} 15. Re1 {[%emt 0:05:48]} Qc7 {[%emt 0:03:40]} 16. e4 {[%emt 0:03:17]} Nc8 {[%emt 0:03:24]} 17. Qd3 {[%emt 0:21:29]} Na7 {[%emt 0:05:14]} 18. Nc4 {[%emt 0:01:20]} Rbd8 {[%emt 0:23:39]} 19. Bf4 {[%emt 0:06:17]} Nc8 {[%emt 0:10:39]} 20. a5 {[%emt 0:17:39]} h6 {[%emt 0:10:23]} 21. g4 {[%emt 0:02:04]} Nh7 {[%emt 0:05:27]} 22. Qg3 {[%emt 0:03:44]} Bb5 {[%emt 0:02:01]} 23. Na3 {[%emt 0:02:18]} g5 {[%emt 0:05:37]} 24. Bd2 {[%emt 0:01:32]} Bd7 {[%emt 0:00:48]} 25. Nc4 {[%emt 0:03:50]} Bb5 {[%emt 0:02:54]} 26. Ne3 {[%emt 0:00:28]} Be5 {[%emt 0:00:04]} 27. Qf3 {[%emt 0:00:31]} Qe7 {[%emt 0:01:54]} 28. Nf5 {[%emt 0:04:41]} Qf6 {[%emt 0:00:05]} 29. Bf1 {[%emt 0:01:19]} Bd7 {[%emt 0:00:03]} 30. Bd3 {[%emt 0:00:37]} Qg6 {[%emt 0:04:41]} 31. Ra3 {[%emt 0:01:22]} Ne7 {[%emt 0:01:01]} 32. Rb3 {[%emt 0:03:03]} Bc8 {[%emt 0:01:52]} 33. Na4 {[%emt 0:01:26]} Rd7 {[%emt 0:01:58]} 34. Nb6 {[%emt 0:00:32]} Rc7 {[%emt 0:00:16]} 35. Bc3 {[%emt 0:02:28]} Nxf5 {[%emt 0:01:56]} 36. exf5 {[%emt 0:04:08]} Qf6 {[%emt 0:00:58]} 37. Bxe5 {[%emt 0:00:20]} Rxe5 {[%emt 0:02:19]} 38. Rxe5 {[%emt 0:02:06]} Qxe5 {[%emt 0:00:13]} 39. Qe4 {[%emt 0:01:09]} Qxe4 {[%emt 0:00:39]} 40. Bxe4 {[%emt 0:00:06]} Nf6 {[%emt 0:00:10]} 41. Bf3 {[%emt 0:04:04]} Bd7 {[%emt 0:00:54]} 42. Nc4 {[%emt 0:01:30]} Ne8 {[%emt 0:06:14]} 43. Rb6 {[%emt 0:00:23]} Bc8 {[%emt 0:16:22]} 44. Nxd6 {[%emt 0:00:29]} Nxd6 {[%emt 0:00:14]} 45. Rxd6 {[%emt 0:00:09]} 1-0

[Event "106th British-ch Major 2019"]
[Site "Torquay"]
[Date "2019.08.02"]
[Round "7.14"]
[White "Akeya-Price, Robert A"]
[Black "Rathbone-Jones, Ifan"]
[Result "1-0"]
[ECO "D12"]
[WhiteElo "1974"]
[BlackElo "1855"]
[Annotator "NA"]
[PlyCount "87"]
[EventDate "2019.07.27"]
[EventType "swiss"]
[EventCountry "GBR"]
[SourceTitle "playchess.com"]
[Source "ChessBase"]
[SourceQuality "1"]
[TimeControl "40/5400+30:1800+30"]

1. d4 {[%emt 0:00:00]} d5 {[%emt 0:00:00]} 2. Nf3 {[%emt 0:00:00]} Bf5 {[%emt 0:00:00]} 3. c4 {[%emt 0:00:00]} c6 {[%emt 0:00:18]} 4. e3 {[%emt 0:00:30]} Nf6 {[%emt 0:00:16]} 5. Bd3 {[%emt 0:00:40]} Ne4 {[%emt 0:01:47]} 6. O-O {[%emt 0:01:04]} e6 {[%emt 0:00:32]} 7. b3 {[%emt 0:01:57]} Nd7 {[%emt 0:00:45]} 8. Bb2 {[%emt 0:00:18]} Bd6 {[%emt 0:00:48]} 9. Qc2 {[%emt 0:01:40]} Bg6 {[%emt 0:04:49]} 10. Nbd2 {[%emt 0:04:18]} f5 {[%emt 0:03:52]} 11. Ne5 {[%emt 0:02:09]} Nxd2 {[%emt 0:07:38]} 12. Qxd2 {[%emt 0:00:31]} Qc7 {[%emt 0:00:14]} 13. Qc3 {[%emt 0:03:15]} O-O {[%emt 0:02:39]} 14. b4 {[%emt 0:03:44]} Rac8 {[%emt 0:06:12]} 15. Rac1 {[%emt 0:04:36]} Bxe5 {[%emt 0:14:32]} 16. dxe5 {[%emt 0:00:08]} Qd8 {[%emt 0:00:18]} 17. Qd4 {[%emt 0:07:18]} Qb6 {[%emt 0:09:35]} 18. Qxb6 {[%emt 0:04:10]} Nxb6 {[%emt 0:00:33]} 19. Bd4 {[%emt 0:08:08]} Nd7 {[%emt 0:00:09]} 20. cxd5 {[%emt 0:01:55]} exd5 {[%emt 0:03:53]} 21. f4 {[%emt 0:02:13]} a6 {[%emt 0:07:13]} 22. g4 {[%emt 0:06:42]} h5 {[%emt 0:07:52]} 23. h3 {[%emt 0:01:02]} Rce8 {[%emt 0:01:59]} 24. Rc2 {[%emt 0:03:27]} Re6 {[%emt 0:05:04]} 25. a4 {[%emt 0:02:08]} hxg4 {[%emt 0:01:29]} 26. hxg4 {[%emt 0:00:08]} Bh7 {[%emt 0:00:25]} 27. Rh2 {[%emt 0:06:05]} g6 {[%emt 0:00:09]} 28. gxf5 {[%emt 0:02:13]} gxf5 {[%emt 0:00:44]} 29. Kf2 {[%emt 0:00:48]} Rf7 {[%emt 0:01:18]} 30. Rfh1 {[%emt 0:04:03]} Bg6 {[%emt 0:07:20]} 31. Rh8+ {[%emt 0:06:14]} Kg7 {[%emt 0:00:02]} 32. Rc8 {[%emt 0:01:18]} Nf8 {[%emt 0:02:53]} 33. Bc5 {[%emt 0:01:21]} Nd7 {[%emt 0:02:54]} 34. Rhh8 {[%emt 0:01:54]} Bh7 {[%emt 0:00:15]} 35. Bd6 {[%emt 0:00:50]} Nb6 {[%emt 0:01:41]} 36. Rce8 {[%emt 0:01:23]} Rxe8 {[%emt 0:04:33]} 37. Rxe8 {[%emt 0:00:02]} Rd7 {[%emt 0:00:00]} 38. Bc5 {[%emt 0:09:44]} Bg6 {[%emt 0:03:16]} 39. Rb8 {[%emt 0:01:42]} Nc4 {[%emt 0:01:01]} 40. e6 {[%emt 0:00:56]} Rc7 {[%emt 0:00:01]} 41. Bxc4 {[%emt 0:32:01]} dxc4 {[%emt 0:30:14]} 42. Bd6 {[%emt 0:00:24]} c3 {[%emt 0:00:00]} 43. Bxc7 {[%emt 0:00:00]} c2 {[%emt 0:00:00]} 44. Be5+ {[%emt 0:00:00]} 1-0

[Event "106th British-ch Major 2019"]
[Site "Torquay"]
[Date "2019.08.02"]
[Round "7.15"]
[White "Ward, Andy"]
[Black "Cusick, Peter W"]
[Result "1-0"]
[ECO "D00"]
[WhiteElo "1822"]
[BlackElo "1971"]
[Annotator "NA"]
[PlyCount "69"]
[EventDate "2019.07.27"]
[EventType "swiss"]
[EventCountry "GBR"]
[SourceTitle "playchess.com"]
[Source "ChessBase"]
[SourceQuality "1"]
[TimeControl "40/5400+30:1800+30"]

1. d4 {[%emt 0:00:00]} Nf6 {[%emt 0:00:52]} 2. Nc3 {[%emt 0:00:00]} d5 {[%emt 0:00:31]} 3. Bf4 {[%emt 0:00:00]} c6 {[%emt 0:00:50]} 4. e3 {[%emt 0:00:00]} g6 {[%emt 0:01:07]} 5. h4 {[%emt 0:02:05]} h5 {[%emt 0:03:25]} 6. Qd2 {[%emt 0:00:13]} Bg7 {[%emt 0:05:33]} 7. O-O-O {[%emt 0:00:12]} b5 {[%emt 0:03:52]} 8. f3 {[%emt 0:01:55]} a5 {[%emt 0:03:20]} 9. Bd3 {[%emt 0:08:29]} Nbd7 {[%emt 0:11:59]} 10. Nh3 {[%emt 0:23:21]} Nb6 {[%emt 0:03:19]} 11. Ng5 {[%emt 0:00:32]} b4 {[%emt 0:05:41]} 12. Ne2 {[%emt 0:00:18]} Nc4 {[%emt 0:16:29]} 13. Bxc4 {[%emt 0:00:08]} dxc4 {[%emt 0:00:03]} 14. e4 {[%emt 0:00:19]} e6 {[%emt 0:09:21]} 15. c3 {[%emt 0:03:14]} bxc3 {[%emt 0:03:46]} 16. Nxc3 {[%emt 0:00:06]} O-O {[%emt 0:01:09]} 17. g4 {[%emt 0:07:37]} hxg4 {[%emt 0:01:46]} 18. fxg4 {[%emt 0:00:28]} e5 {[%emt 0:01:20]} 19. Bxe5 {[%emt 0:12:39]} Bxg4 {[%emt 0:00:31]} 20. Rdf1 {[%emt 0:00:08]} Nh5 {[%emt 0:07:15]} 21. Bxg7 {[%emt 0:00:20]} Kxg7 {[%emt 0:00:37]} 22. Rhg1 {[%emt 0:00:52]} Bd7 {[%emt 0:03:46]} 23. Qe2 {[%emt 0:04:17]} Nf6 {[%emt 0:04:14]} 24. Qxc4 {[%emt 0:00:58]} Rb8 {[%emt 0:01:48]} 25. h5 {[%emt 0:01:04]} Rb4 {[%emt 0:00:48]} 26. h6+ {[%emt 0:00:14]} Kxh6 {[%emt 0:01:58]} 27. Qxf7 {[%emt 0:02:05]} Rxb2 {[%emt 0:04:09]} 28. Kxb2 {[%emt 0:02:31]} Qb6+ {[%emt 0:00:18]} 29. Qb3 {[%emt 0:00:08]} Qc7 {[%emt 0:00:49]} 30. Ka1 {[%emt 0:02:48]} Rb8 {[%emt 0:01:29]} 31. Qf7 {[%emt 0:00:49]} Qb6 {[%emt 0:00:31]} 32. Rf2 {[%emt 0:02:20]} Ng4 {[%emt 0:00:59]} 33. Qxd7 {[%emt 0:01:46]} Rb7 {[%emt 0:01:16]} 34. Qxg4 {[%emt 0:01:06]} Qxd4 {[%emt 0:00:11]} 35. Qh4+ {[%emt 0:00:14]} 1-0

[Event "106th British-ch Major 2019"]
[Site "Torquay"]
[Date "2019.08.02"]
[Round "7.16"]
[White "Warren, Alex M"]
[Black "Foster, Timothy"]
[Result "1-0"]
[ECO "A45"]
[WhiteElo "1967"]
[BlackElo "1852"]
[Annotator "NA"]
[PlyCount "123"]
[EventDate "2019.07.27"]
[EventType "swiss"]
[EventCountry "GBR"]
[SourceTitle "playchess.com"]
[Source "ChessBase"]
[SourceQuality "1"]
[TimeControl "40/5400+30:1800+30"]

1. d4 {[%emt 1:04:16]} Nf6 {[%emt 0:00:03]} 2. Bf4 {[%emt 0:00:06]} c5 {[%emt 0:00:05]} 3. d5 {[%emt 0:00:03]} d6 {[%emt 0:00:03]} 4. Nc3 {[%emt 0:02:56]} e5 {[%emt 0:00:04]} 5. Bg3 {[%emt 0:09:15]} Be7 {[%emt 0:08:25]} 6. e4 {[%emt 0:01:43]} h5 {[%emt 0:03:43]} 7. h4 {[%emt 0:04:24]} Qb6 {[%emt 0:01:24]} 8. Rb1 {[%emt 0:05:32]} Qa5 {[%emt 0:08:17]} 9. Qd2 {[%emt 0:06:16]} a6 {[%emt 0:05:38]} 10. a4 {[%emt 0:09:11]} Qb4 {[%emt 0:04:52]} 11. Bd3 {[%emt 0:12:42]} Nbd7 {[%emt 0:10:29]} 12. b3 {[%emt 0:08:41]} Nf8 {[%emt 0:07:03]} 13. Nf3 {[%emt 0:08:57]} Ng6 {[%emt 0:00:55]} 14. Nd1 {[%emt 0:02:51]} Qxd2+ {[%emt 0:01:20]} 15. Nxd2 {[%emt 0:00:27]} Rb8 {[%emt 0:02:46]} 16. a5 {[%emt 0:00:43]} Nd7 {[%emt 0:03:49]} 17. Ne3 {[%emt 0:01:48]} b5 {[%emt 0:03:06]} 18. axb6 {[%emt 0:00:05]} Nxb6 {[%emt 0:00:05]} 19. Ra1 {[%emt 0:01:53]} Nf4 {[%emt 0:00:35]} 20. Bc4 {[%emt 0:05:49]} O-O 21. f3 {[%emt 0:03:46]} g6 {[%emt 0:04:55]} 22. Bf2 {[%emt 0:03:09]} f5 {[%emt 0:04:34]} 23. g3 {[%emt 0:01:18]} fxe4 {[%emt 0:00:05]} 24. Nxe4 {[%emt 0:04:30]} Nh3 {[%emt 0:00:24]} 25. Ke2 {[%emt 0:00:53]} Nxf2 {[%emt 0:08:27]} 26. Nxf2 {[%emt 0:00:01]} Ra8 {[%emt 0:03:03]} 27. Ne4 {[%emt 0:01:02]} a5 {[%emt 0:00:46]} 28. Nc3 {[%emt 0:00:41]} Bd7 {[%emt 0:02:21]} 29. Bb5 {[%emt 0:02:35]} Rfb8 {[%emt 0:02:17]} 30. Bxd7 {[%emt 0:00:22]} Nxd7 {[%emt 0:00:03]} 31. Nc4 {[%emt 0:00:11]} Kf7 {[%emt 0:09:51]} 32. Rxa5 {[%emt 0:01:01]} Rxa5 {[%emt 0:00:10]} 33. Nxa5 Ra8 {[%emt 0:00:28]} 34. Nc4 {[%emt 0:00:13]} Nf6 {[%emt 0:00:15]} 35. Rd1 {[%emt 0:00:34]} Ra6 {[%emt 0:00:18]} 36. Ne4 {[%emt 0:01:22]} Nxe4 {[%emt 0:00:27]} 37. fxe4 {[%emt 0:00:01]} Ra2 {[%emt 0:00:55]} 38. Kd3 {[%emt 0:00:28]} Ra6 {[%emt 0:00:42]} 39. Rf1+ {[%emt 0:01:00]} Kg7 {[%emt 0:01:52]} 40. Kc3 {[%emt 0:01:22]} Ra2 {[%emt 0:00:24]} 41. b4 {[%emt 0:04:22]} cxb4+ {[%emt 0:04:19]} 42. Kb3 {[%emt 0:00:15]} Ra8 {[%emt 0:00:09]} 43. Kxb4 {[%emt 0:00:33]} Rb8+ {[%emt 0:00:05]} 44. Kc3 {[%emt 0:00:33]} Rf8 {[%emt 0:06:13]} 45. Rxf8 {[%emt 0:01:10]} Kxf8 {[%emt 0:04:46]} 46. Kb4 {[%emt 0:00:59]} Ke8 {[%emt 0:03:16]} 47. Kb5 {[%emt 0:00:36]} Kd7 {[%emt 0:00:04]} 48. Nd2 {[%emt 0:04:05]} g5 {[%emt 0:00:23]} 49. hxg5 {[%emt 0:00:38]} Bxg5 {[%emt 0:00:05]} 50. Nf3 {[%emt 0:00:18]} Be3 {[%emt 0:00:17]} 51. Nh4 {[%emt 0:00:32]} Bf2 {[%emt 0:00:14]} 52. Nf5 {[%emt 0:00:05]} Kc7 {[%emt 0:04:20]} 53. Kc4 {[%emt 0:03:20]} Be1 {[%emt 0:01:00]} 54. Kd3 {[%emt 0:00:28]} Kb6 {[%emt 0:01:15]} 55. Ke2 {[%emt 0:00:14]} Bb4 {[%emt 0:00:05]} 56. Ng7 {[%emt 0:00:17]} Kc5 {[%emt 0:00:24]} 57. Nxh5 {[%emt 0:00:47]} Kd4 {[%emt 0:00:09]} 58. Nf6 {[%emt 0:00:58]} Ba5 {[%emt 0:01:13]} 59. Kf3 {[%emt 0:00:26]} Bd8 {[%emt 0:00:16]} 60. Ne8 {[%emt 0:00:53]} Be7 {[%emt 0:00:06]} 61. g4 {[%emt 0:00:30]} Kc3 {[%emt 0:00:11]} 62. Ng7 {[%emt 0:04:07]} 1-0

[Event "106th British-ch Major 2019"]
[Site "Torquay"]
[Date "2019.08.02"]
[Round "7.17"]
[White "Sheerin, Alex"]
[Black "Chapman, Matt"]
[Result "0-1"]
[ECO "D00"]
[WhiteElo "1845"]
[BlackElo "1957"]
[Annotator "NA"]
[PlyCount "84"]
[EventDate "2019.07.27"]
[EventType "swiss"]
[EventCountry "GBR"]
[SourceTitle "playchess.com"]
[Source "ChessBase"]
[SourceQuality "1"]
[TimeControl "40/5400+30:1800+30"]

1. d4 {[%emt 0:00:00]} d5 {[%emt 0:00:00]} 2. Nc3 {[%emt 0:00:00]} Nf6 {[%emt 0:00:00]} 3. Bf4 {[%emt 0:00:00]} c5 {[%emt 0:00:49]} 4. e4 {[%emt 0:01:04]} Nxe4 {[%emt 0:10:13]} 5. Nxe4 {[%emt 0:00:08]} dxe4 {[%emt 0:00:06]} 6. d5 {[%emt 0:00:10]} Nd7 {[%emt 0:03:14]} 7. Qd2 {[%emt 0:05:50]} g6 {[%emt 0:07:20]} 8. O-O-O {[%emt 0:01:21]} Bg7 {[%emt 0:02:13]} 9. Bh6 {[%emt 0:01:19]} O-O {[%emt 0:02:34]} 10. h4 {[%emt 0:01:14]} Nf6 {[%emt 0:01:48]} 11. h5 {[%emt 0:07:29]} Bxh6 {[%emt 0:03:53]} 12. Qxh6 {[%emt 0:00:10]} Qd6 {[%emt 0:01:01]} 13. Be2 {[%emt 0:08:24]} Nxh5 {[%emt 0:10:28]} 14. g4 {[%emt 0:09:53]} Qf4+ {[%emt 0:01:23]} 15. Qxf4 {[%emt 0:00:21]} Nxf4 {[%emt 0:00:08]} 16. g5 {[%emt 0:01:50]} f6 {[%emt 0:05:51]} 17. Bc4 {[%emt 0:03:38]} Kg7 {[%emt 0:01:37]} 18. gxf6+ {[%emt 0:01:53]} exf6 {[%emt 0:03:14]} 19. f3 {[%emt 0:03:10]} exf3 {[%emt 0:03:39]} 20. Nxf3 {[%emt 0:00:02]} Bg4 {[%emt 0:01:55]} 21. Rdf1 {[%emt 0:00:47]} Bxf3 {[%emt 0:00:49]} 22. Rxf3 {[%emt 0:00:01]} g5 {[%emt 0:00:57]} 23. Re3 {[%emt 0:00:57]} Rfe8 {[%emt 0:03:18]} 24. Rhe1 {[%emt 0:00:23]} Kf8 {[%emt 0:00:19]} 25. d6 {[%emt 0:00:38]} Rxe3 {[%emt 0:10:32]} 26. Rxe3 {[%emt 0:00:02]} Rd8 {[%emt 0:01:31]} 27. Re7 {[%emt 0:01:43]} Rxd6 {[%emt 0:00:32]} 28. Rxb7 {[%emt 0:00:39]} h5 {[%emt 0:02:04]} 29. Rxa7 {[%emt 0:00:26]} h4 {[%emt 0:03:27]} 30. a4 {[%emt 0:01:11]} h3 {[%emt 0:02:16]} 31. a5 {[%emt 0:01:05]} g4 {[%emt 0:01:26]} 32. a6 {[%emt 0:01:48]} h2 {[%emt 0:00:45]} 33. Rf7+ {[%emt 0:07:20]} Ke8 {[%emt 0:00:12]} 34. Rh7 {[%emt 0:00:08]} Nh3 {[%emt 0:00:32]} 35. Rh8+ {[%emt 0:10:20]} Ke7 {[%emt 0:02:52]} 36. Rh7+ {[%emt 0:00:21]} Kd8 {[%emt 0:00:05]} 37. Rh8+ {[%emt 0:00:09]} Kc7 {[%emt 0:00:05]} 38. Rh7+ {[%emt 0:00:35]} Kc6 {[%emt 0:00:45]} 39. b4 {[%emt 0:03:45]} h1=Q+ {[%emt 0:00:51]} 40. Kb2 {[%emt 0:00:06]} cxb4 {[%emt 0:02:11]} 41. a7 {[%emt 0:30:38]} Rd8 {[%emt 0:32:11]} 42. Ba6 {[%emt 0:00:50]} Kb6 {[%emt 0:01:16]} 0-1

[Event "106th British-ch Major 2019"]
[Site "Torquay"]
[Date "2019.08.02"]
[Round "7.18"]
[White "Rushbrooke, Tibo"]
[Black "Rice, Chris B"]
[Result "0-1"]
[ECO "C47"]
[WhiteElo "1700"]
[BlackElo "2040"]
[Annotator "NA"]
[PlyCount "54"]
[EventDate "2019.07.27"]
[EventType "swiss"]
[EventCountry "GBR"]
[SourceTitle "playchess.com"]
[Source "ChessBase"]
[SourceQuality "1"]
[TimeControl "40/5400+30:1800+30"]

1. e4 {[%emt 0:00:00]} e5 {[%emt 0:00:00]} 2. Nf3 {[%emt 0:00:18]} Nc6 {[%emt 0:00:06]} 3. Nc3 {[%emt 0:00:36]} Nf6 {[%emt 0:00:29]} 4. d4 {[%emt 0:00:09]} exd4 {[%emt 0:00:35]} 5. Nxd4 {[%emt 0:00:07]} Bb4 {[%emt 0:00:23]} 6. Nxc6 {[%emt 0:00:11]} bxc6 {[%emt 0:01:04]} 7. Bd3 {[%emt 0:00:06]} O-O {[%emt 0:00:38]} 8. O-O {[%emt 0:00:12]} d5 {[%emt 0:00:45]} 9. exd5 {[%emt 0:01:10]} cxd5 {[%emt 0:00:19]} 10. Bg5 {[%emt 0:00:10]} c6 {[%emt 0:00:20]} 11. Qf3 {[%emt 0:02:52]} Rb8 {[%emt 0:01:07]} 12. Nd1 {[%emt 0:05:17]} Re8 {[%emt 0:37:58]} 13. h3 {[%emt 0:07:24]} Bd6 {[%emt 0:02:40]} 14. b3 {[%emt 0:04:24]} Be5 {[%emt 0:08:51]} 15. Rb1 {[%emt 0:03:44]} Qd6 {[%emt 0:08:36]} 16. Ne3 {[%emt 0:05:35]} Ne4 {[%emt 0:05:36]} 17. Bxe4 {[%emt 0:01:51]} dxe4 {[%emt 0:00:23]} 18. Qe2 {[%emt 0:00:50]} Qg6 {[%emt 0:19:09]} 19. f4 {[%emt 0:15:58]} exf3 {[%emt 0:00:00]} 20. Qxf3 {[%emt 0:00:10]} Ba6 {[%emt 0:00:00]} 21. Bf4 {[%emt 0:02:02]} Bxf1 {[%emt 0:00:00]} 22. Rxf1 {[%emt 0:00:17]} Bxf4 {[%emt 0:00:00]} 23. Qxf4 {[%emt 0:00:11]} Rbd8 {[%emt 0:00:00]} 24. Rf2 {[%emt 0:11:46]} h6 {[%emt 0:00:30]} 25. Nc4 {[%emt 0:03:59]} Rd1+ {[%emt 0:00:58]} 26. Rf1 {[%emt 0:01:09]} Rxf1+ {[%emt 0:02:43]} 27. Qxf1 {[%emt 0:00:25]} Qxc2 {[%emt 0:00:39]} 0-1

[Event "106th British-ch Major 2019"]
[Site "Torquay"]
[Date "2019.08.02"]
[Round "7.19"]
[White "Brown, Tom"]
[Black "Camp, Imogen Al"]
[Result "1/2-1/2"]
[ECO "D45"]
[WhiteElo "1953"]
[BlackElo "1850"]
[Annotator "NA"]
[PlyCount "57"]
[EventDate "2019.07.27"]
[EventType "swiss"]
[EventCountry "GBR"]
[SourceTitle "playchess.com"]
[Source "ChessBase"]
[SourceQuality "1"]
[TimeControl "40/5400+30:1800+30"]

1. d4 {[%emt 0:01:57]} d5 {[%emt 0:00:00]} 2. c4 {[%emt 0:00:15]} c6 {[%emt 0:00:29]} 3. Nc3 {[%emt 0:00:54]} Nf6 {[%emt 0:00:24]} 4. e3 {[%emt 0:00:45]} e6 {[%emt 0:00:31]} 5. Nf3 {[%emt 0:00:08]} Nbd7 {[%emt 0:02:41]} 6. Qc2 {[%emt 0:00:05]} Bd6 {[%emt 0:01:17]} 7. b3 {[%emt 0:00:09]} O-O {[%emt 0:00:38]} 8. Be2 {[%emt 0:00:20]} Qc7 {[%emt 0:01:08]} 9. Bb2 {[%emt 0:01:20]} b6 {[%emt 0:03:39]} 10. O-O {[%emt 0:01:48]} Bb7 {[%emt 0:00:33]} 11. Rac1 {[%emt 0:04:53]} Rac8 {[%emt 0:00:34]} 12. Rfe1 {[%emt 0:00:55]} e5 {[%emt 0:03:06]} 13. cxd5 {[%emt 0:07:07]} cxd5 {[%emt 0:01:23]} 14. Qb1 {[%emt 0:02:48]} Qb8 {[%emt 0:02:24]} 15. g3 {[%emt 0:13:13]} e4 {[%emt 0:07:07]} 16. Nh4 {[%emt 0:02:14]} Rfe8 {[%emt 0:02:22]} 17. Nb5 {[%emt 0:03:03]} Bf8 {[%emt 0:01:58]} 18. Ba3 {[%emt 0:01:28]} Bxa3 {[%emt 0:09:49]} 19. Nxa3 {[%emt 0:00:08]} a6 {[%emt 0:00:20]} 20. Rxc8 {[%emt 0:04:23]} Rxc8 {[%emt 0:00:17]} 21. Rc1 {[%emt 0:01:05]} g6 {[%emt 0:02:29]} 22. Ng2 {[%emt 0:02:01]} Nf8 {[%emt 0:01:44]} 23. Rxc8 {[%emt 0:02:31]} Qxc8 {[%emt 0:00:16]} 24. Qc2 {[%emt 0:00:25]} Ne6 {[%emt 0:01:05]} 25. Qxc8+ {[%emt 0:03:35]} Bxc8 {[%emt 0:00:08]} 26. h4 {[%emt 0:05:11]} Nc7 {[%emt 0:04:15]} 27. Nb1 {[%emt 0:02:40]} Bd7 {[%emt 0:06:02]} 28. Nc3 {[%emt 0:02:13]} Kf8 {[%emt 0:01:56]} 29. Nf4 {[%emt 0:07:30]} 1/2-1/2

[Event "106th British-ch Major 2019"]
[Site "Torquay"]
[Date "2019.08.02"]
[Round "7.20"]
[White "Modi, Kishan J"]
[Black "Metcalfe, Charlie P"]
[Result "1-0"]
[ECO "C54"]
[WhiteElo "1923"]
[BlackElo "1739"]
[Annotator "NA"]
[PlyCount "89"]
[EventDate "2019.07.27"]
[EventType "swiss"]
[EventCountry "GBR"]
[SourceTitle "playchess.com"]
[Source "ChessBase"]
[SourceQuality "1"]
[TimeControl "40/5400+30:1800+30"]

1. e4 {[%emt 0:00:00]} e5 {[%emt 0:00:00]} 2. Nf3 {[%emt 0:00:00]} Nc6 {[%emt 0:00:00]} 3. d4 {[%emt 0:00:05]} exd4 {[%emt 0:00:00]} 4. Bc4 {[%emt 0:00:06]} Bc5 {[%emt 0:00:00]} 5. c3 {[%emt 0:00:14]} Nf6 {[%emt 0:00:00]} 6. e5 {[%emt 0:00:12]} d5 {[%emt 0:00:00]} 7. Bb5 {[%emt 0:00:05]} Ne4 {[%emt 0:00:00]} 8. cxd4 {[%emt 0:00:06]} Bb6 {[%emt 0:00:00]} 9. O-O {[%emt 0:01:15]} O-O {[%emt 0:00:13]} 10. Bxc6 {[%emt 0:00:52]} bxc6 {[%emt 0:00:10]} 11. Nc3 {[%emt 0:00:40]} Bg4 {[%emt 0:00:18]} 12. h3 {[%emt 0:09:55]} Bh5 {[%emt 0:00:05]} 13. Ne2 {[%emt 0:10:10]} Bxf3 {[%emt 0:26:41]} 14. gxf3 {[%emt 0:04:18]} Ng5 {[%emt 0:01:28]} 15. Bxg5 {[%emt 0:01:08]} Qxg5+ {[%emt 0:00:02]} 16. Kh2 {[%emt 0:00:19]} Qf5 {[%emt 0:11:10]} 17. f4 {[%emt 0:01:49]} Qe4 {[%emt 0:02:48]} 18. Rc1 {[%emt 0:01:21]} Rae8 {[%emt 0:26:09]} 19. Qc2 {[%emt 0:01:18]} Qf3 {[%emt 0:02:10]} 20. Qd2 {[%emt 0:07:08]} Re6 {[%emt 0:02:20]} 21. Qe3 {[%emt 0:01:24]} Qxe3 {[%emt 0:05:48]} 22. fxe3 {[%emt 0:00:05]} f5 {[%emt 0:01:50]} 23. Rc2 {[%emt 0:00:51]} Rb8 {[%emt 0:05:30]} 24. Ng3 {[%emt 0:01:35]} g6 {[%emt 0:00:44]} 25. Rfc1 {[%emt 0:01:41]} Ba5 {[%emt 0:06:16]} 26. a3 {[%emt 0:01:31]} Kf7 {[%emt 0:00:24]} 27. b4 {[%emt 0:01:17]} Bb6 {[%emt 0:00:01]} 28. Rxc6 {[%emt 0:00:13]} Rxc6 {[%emt 0:02:27]} 29. Rxc6 {[%emt 0:01:26]} a5 {[%emt 0:00:28]} 30. Kg2 {[%emt 0:03:23]} axb4 {[%emt 0:00:11]} 31. axb4 {[%emt 0:00:07]} Ra8 {[%emt 0:00:13]} 32. Ne2 {[%emt 0:04:12]} Ra2 {[%emt 0:00:36]} 33. Kf3 {[%emt 0:00:42]} Ra8 {[%emt 0:07:44]} 34. Nc3 {[%emt 0:00:19]} Rd8 {[%emt 0:00:01]} 35. Nb5 {[%emt 0:00:12]} Kg8 {[%emt 0:01:05]} 36. Nxc7 {[%emt 0:00:33]} Rc8 {[%emt 0:00:09]} 37. Nxd5 {[%emt 0:00:13]} Rxc6 {[%emt 0:00:05]} 38. Ne7+ {[%emt 0:00:03]} Kf7 {[%emt 0:00:06]} 39. Nxc6 {[%emt 0:00:05]} Ke6 {[%emt 0:00:05]} 40. e4 {[%emt 0:00:24]} Kf7 {[%emt 0:01:15]} 41. d5 {[%emt 0:30:17]} Kg7 {[%emt 0:30:20]} 42. e6 {[%emt 0:00:23]} g5 {[%emt 0:00:24]} 43. exf5 {[%emt 0:00:28]} Bc5 {[%emt 0:00:43]} 44. bxc5 {[%emt 0:00:07]} h5 {[%emt 0:00:03]} 45. d6 {[%emt 0:00:08]} 1-0